[Event "GER-chT Youth Countries 2020"]
[Site "Berlin"]
[Date "2020.10.02"]
[Round "5"]
[White "Hinrichs, Paul"]
[Black "Lesny, Florian"]
[Result "0-1"]
[ECO "D47"]
[WhiteElo "2152"]
[BlackElo "2178"]
[Annotator "ChessBase"]
[PlyCount "116"]
[EventDate "2020.09.30"]
[EventType "team-tourn"]
[EventRounds "7"]
[EventCountry "GER"]
[SourceTitle "playchess.com"]
[Source "ChessBase"]
[SourceQuality "1"]
[TimeControl "30/5400+30:0"]

1. d4 {[%emt 0:00:00]} d5 {[%emt 0:00:00]} 2. c4 {[%emt 0:00:00]} c6 {[%emt 0:00:00]} 3. Nf3 {[%emt 0:00:00]} Nf6 {[%emt 0:00:00]} 4. Nc3 {[%emt 0:00:00]} e6 {[%emt 0:00:18]} 5. e3 {[%emt 0:00:37]} Nbd7 {[%emt 0:00:12]} 6. Bd3 {[%emt 0:00:07]} dxc4 {[%emt 0:00:16]} 7. Bxc4 {[%emt 0:00:05]} b5 {[%emt 0:00:13]} 8. Bd3 {[%emt 0:00:06]} Bd6 {[%emt 0:00:45]} 9. O-O {[%emt 0:01:19]} O-O {[%emt 0:00:15]} 10. e4 {[%emt 0:01:43]} e5 {[%emt 0:00:30]} 11. Bg5 {[%emt 0:00:38]} h6 {[%emt 0:02:03]} 12. Bh4 {[%emt 0:01:06]} exd4 {[%emt 0:00:47]} 13. Nxd4 {[%emt 0:03:47]} Ne5 {[%emt 0:02:55]} 14. Be2 {[%emt 0:03:22]} b4 {[%emt 0:02:40]} 15. Na4 {[%emt 0:01:12]} g5 {[%emt 0:00:16]} 16. Bg3 {[%emt 0:02:42]} Nxe4 {[%emt 0:17:00]} 17. Rc1 {[%emt 0:06:37]} Nxg3 {[%emt 0:09:32]} 18. fxg3 {[%emt 0:03:04]} Bd7 {[%emt 0:01:05]} 19. Nc5 {[%emt 0:00:13]} Bxc5 {[%emt 0:00:30]} 20. Rxc5 {[%emt 0:00:30]} Qe7 {[%emt 0:06:27]} 21. Qc2 {[%emt 0:00:40]} Rfe8 {[%emt 0:08:31]} 22. Bh5 {[%emt 0:28:28]} Qd6 {[%emt 0:05:23]} 23. Nf3 {[%emt 0:03:25]} Nxf3+ 24. Rxf3 {[%emt 0:01:00]} Qd4+ {[%emt 0:04:20]} 25. Kf1 {[%emt 0:16:02]} Re7 {[%emt 0:05:26]} 26. Rd3 {[%emt 0:00:57]} Qe4 {[%emt 0:06:17]} 27. Qd2 {[%emt 0:01:42]} Bf5 {[%emt 0:07:13]} 28. Rd4 {[%emt 0:02:08]} Qe6 {[%emt 0:00:53]} 29. Rd6 {[%emt 0:02:32]} Qe4 30. Bf3 {[%emt 0:00:12]} Qb1+ {[%emt 0:01:37]} 31. Rc1 {[%emt 1:30:31]} Qxa2 {[%emt 1:34:50]} 32. Bxc6 {[%emt 0:00:59]} Qa6+ 33. Kg1 {[%emt 0:00:10]} Qb6+ {[%emt 0:00:41]} 34. Kh1 {[%emt 0:10:45]} Rc8 35. Rf6 {[%emt 0:01:55]} Qe3 {[%emt 0:07:43]} 36. Qxe3 {[%emt 0:01:17]} Rxe3 37. Ra1 {[%emt 0:01:44]} Be6 {[%emt 0:01:43]} 38. Bb5 {[%emt 0:00:12]} Kg7 {[%emt 0:03:17]} 39. Rf2 {[%emt 0:00:30]} Rc5 {[%emt 0:00:45]} 40. Bf1 {[%emt 0:01:31]} a5 {[%emt 0:00:00]} 41. Rd2 {[%emt 0:00:00]} Rce5 {[%emt 0:00:00]} 42. Kg1 Re1 43. Rxe1 {[%emt 0:00:00]} Rxe1 {[%emt 0:00:00]} 44. Kf2 {[%emt 0:00:00]} Re5 {[%emt 0:00:00]} 45. h3 {[%emt 0:00:00]} a4 {[%emt 0:00:00]} 46. g4 {[%emt 0:00:00]} a3 {[%emt 0:00:00]} 47. bxa3 {[%emt 0:00:00]} bxa3 {[%emt 0:00:00]} 48. Rd1 {[%emt 0:00:00]} a2 {[%emt 0:00:00]} 49. Bd3 {[%emt 0:00:00]} Kf6 {[%emt 0:00:00]} 50. Ra1 {[%emt 0:00:00]} Ra5 {[%emt 0:00:00]} 51. Ke3 {[%emt 0:00:00]} Ke5 {[%emt 0:00:00]} 52. Rd1 {[%emt 0:00:00]} Kf6 {[%emt 0:00:00]} 53. Ra1 {[%emt 0:00:00]} Ke5 {[%emt 0:00:00]} 54. Kd2 {[%emt 0:00:00]} Kd4 {[%emt 0:00:00]} 55. Be2 {[%emt 0:00:00]} Ra3 {[%emt 0:00:00]} 56. Bb5 {[%emt 0:00:00]} Bd5 {[%emt 0:00:00]} 57. Bf1 {[%emt 0:00:00]} Rg3 58. Ke2 {[%emt 0:00:00]} Rb3 {[%emt 0:00:00]} 0-1

[Event "GER-chT Youth Countries 2020"]
[Site "Berlin"]
[Date "2020.10.02"]
[Round "5"]
[White "Popvasilev, Kaloyan"]
[Black "Burian, Simon"]
[Result "1/2-1/2"]
[ECO "B92"]
[WhiteElo "2145"]
[BlackElo "2113"]
[Annotator "ChessBase"]
[PlyCount "41"]
[EventDate "2020.09.30"]
[EventType "team-tourn"]
[EventRounds "7"]
[EventCountry "GER"]
[SourceTitle "playchess.com"]
[Source "ChessBase"]
[SourceQuality "1"]
[TimeControl "30/5400+30:0"]

1. e4 {[%emt 0:00:00]} c5 {[%emt 0:00:00]} 2. Nf3 {[%emt 0:00:00]} d6 {[%emt 0:00:00]} 3. d4 {[%emt 0:00:37]} cxd4 {[%emt 0:00:00]} 4. Nxd4 {[%emt 0:00:05]} Nf6 {[%emt 0:00:00]} 5. Nc3 {[%emt 0:00:04]} a6 {[%emt 0:00:00]} 6. Be2 {[%emt 0:00:31]} e5 {[%emt 0:00:17]} 7. Nf3 {[%emt 0:00:18]} Be6 {[%emt 0:00:37]} 8. Bg5 {[%emt 0:01:37]} Nbd7 {[%emt 0:01:01]} 9. O-O {[%emt 0:04:16]} Be7 {[%emt 0:01:46]} 10. a4 {[%emt 0:02:10]} h6 {[%emt 0:02:21]} 11. Bxf6 {[%emt 0:00:15]} Nxf6 {[%emt 0:00:14]} 12. Re1 {[%emt 0:06:20]} O-O {[%emt 0:02:32]} 13. Bf1 {[%emt 0:00:35]} Qa5 {[%emt 0:04:59]} 14. Qd2 {[%emt 0:03:29]} Qb4 {[%emt 0:04:16]} 15. Nd1 {[%emt 0:15:59]} Qxd2 {[%emt 0:04:51]} 16. Nxd2 {[%emt 0:00:05]} Rac8 {[%emt 0:08:42]} 17. c3 {[%emt 0:03:00]} Rfe8 {[%emt 0:04:20]} 18. Ne3 {[%emt 0:02:03]} Bf8 {[%emt 0:02:23]} 19. Bc4 {[%emt 0:09:13]} Bxc4 {[%emt 0:03:13]} 20. Nexc4 {[%emt 0:00:53]} Red8 {[%emt 0:04:13]} 21. Nb6 {[%emt 0:12:08]} 1/2-1/2

[Event "GER-chT Youth Countries 2020"]
[Site "Berlin"]
[Date "2020.10.02"]
[Round "5"]
[White "Sreyas Payyappat"]
[Black "Pikalow, Michael"]
[Result "1-0"]
[ECO "B93"]
[WhiteElo "2144"]
[BlackElo "2021"]
[Annotator "ChessBase"]
[PlyCount "82"]
[EventDate "2020.09.30"]
[EventType "team-tourn"]
[EventRounds "7"]
[EventCountry "GER"]
[SourceTitle "playchess.com"]
[Source "ChessBase"]
[SourceQuality "1"]
[TimeControl "30/5400+30:0"]

1. e4 {[%emt 0:00:00]} c5 {[%emt 0:00:00]} 2. Nf3 {[%emt 0:00:00]} d6 {[%emt 0:00:00]} 3. d4 {[%emt 0:00:00]} cxd4 {[%emt 0:00:00]} 4. Nxd4 {[%emt 0:00:00]} Nf6 {[%emt 0:00:00]} 5. Nc3 {[%emt 0:00:02]} a6 {[%emt 0:00:00]} 6. f4 {[%emt 0:00:06]} e5 {[%emt 0:00:47]} 7. Nf3 {[%emt 0:00:07]} Nbd7 {[%emt 0:00:36]} 8. a4 {[%emt 0:00:41]} Be7 {[%emt 0:01:46]} 9. Bc4 {[%emt 0:00:38]} O-O {[%emt 0:00:36]} 10. O-O {[%emt 0:00:08]} exf4 {[%emt 0:00:24]} 11. Bxf4 {[%emt 0:00:12]} Qb6+ {[%emt 0:03:49]} 12. Kh1 {[%emt 0:00:09]} Qxb2 {[%emt 0:16:33]} 13. Qe1 Qb6 {[%emt 0:04:50]} 14. Rd1 {[%emt 0:06:56]} Qc7 {[%emt 0:05:09]} 15. Bb3 {[%emt 0:01:20]} Ne5 16. Bg5 {[%emt 0:11:25]} Be6 {[%emt 0:10:22]} 17. Nd4 {[%emt 0:01:33]} Bg4 {[%emt 0:11:07]} 18. Bxf6 Bxf6 {[%emt 0:03:03]} 19. Nd5 {[%emt 0:04:52]} Qd8 20. Nxf6+ {[%emt 0:07:59]} gxf6 {[%emt 0:01:07]} 21. Rd2 {[%emt 0:04:23]} Qe7 {[%emt 0:10:00]} 22. Rdf2 Nd7 23. Rf4 {[%emt 0:08:10]} Be6 {[%emt 0:01:32]} 24. Rh4 {[%emt 0:01:20]} Rfc8 {[%emt 0:07:16]} 25. Qe3 Nf8 26. Qh6 {[%emt 0:07:54]} Rc5 {[%emt 0:07:02]} 27. Rxf6 {[%emt 0:08:29]} Re5 {[%emt 0:01:42]} 28. h3 {[%emt 0:02:31]} Rc8 {[%emt 0:07:26]} 29. Nxe6 {[%emt 0:00:41]} fxe6 {[%emt 0:02:56]} 30. Rg4+ {[%emt 0:00:28]} Kh8 {[%emt 0:01:16]} 31. Rgf4 {[%emt 1:30:12]} Kg8 {[%emt 1:32:51]} 32. R4f5 {[%emt 0:03:54]} Re8 {[%emt 0:01:55]} 33. Qg5+ Qg7 {[%emt 0:01:04]} 34. Rxe5 {[%emt 0:03:40]} dxe5 {[%emt 0:00:12]} 35. Qxe5 {[%emt 0:00:13]} Kh8 {[%emt 0:01:33]} 36. Qf4 {[%emt 0:01:05]} Ng6 37. Qf1 {[%emt 0:00:27]} Rd8 {[%emt 0:00:59]} 38. Bxe6 Qc7 {[%emt 0:00:36]} 39. Bd5 {[%emt 0:01:37]} Qg3 {[%emt 0:00:28]} 40. Rf7 {[%emt 0:02:41]} Rd6 {[%emt 0:00:59]} 41. Qa1+ {[%emt 0:02:12]} Ne5 {[%emt 0:00:00]} 1-0

[Event "GER-chT Youth Countries 2020"]
[Site "Berlin"]
[Date "2020.10.02"]
[Round "5"]
[White "Jeschke, Jan"]
[Black "Reuker, Jari"]
[Result "0-1"]
[ECO "C45"]
[WhiteElo "2043"]
[BlackElo "2401"]
[Annotator "ChessBase"]
[PlyCount "56"]
[EventDate "2020.09.30"]
[EventType "team-tourn"]
[EventRounds "7"]
[EventCountry "GER"]
[SourceTitle "playchess.com"]
[Source "ChessBase"]
[SourceQuality "1"]
[TimeControl "30/5400+30:0"]

1. e4 {[%emt 0:00:00]} e5 {[%emt 0:00:00]} 2. Nf3 {[%emt 0:00:00]} Nc6 {[%emt 0:00:00]} 3. d4 {[%emt 0:00:10]} exd4 {[%emt 0:00:00]} 4. Nxd4 {[%emt 0:00:13]} Nf6 {[%emt 0:00:04]} 5. Nxc6 {[%emt 0:00:37]} bxc6 {[%emt 0:00:06]} 6. e5 {[%emt 0:00:07]} Qe7 {[%emt 0:00:09]} 7. Qe2 {[%emt 0:00:11]} Nd5 {[%emt 0:00:06]} 8. h4 Qe6 {[%emt 0:00:17]} 9. c4 {[%emt 0:01:20]} Nb6 {[%emt 0:01:23]} 10. Nd2 {[%emt 0:00:49]} a5 {[%emt 0:05:08]} 11. g3 {[%emt 0:09:43]} Bb4 {[%emt 0:15:28]} 12. a3 {[%emt 0:11:06]} Bxd2+ {[%emt 0:02:12]} 13. Bxd2 {[%emt 0:00:09]} Ba6 {[%emt 0:00:15]} 14. b3 {[%emt 0:02:56]} a4 {[%emt 0:00:47]} 15. Bh3 {[%emt 0:03:02]} Qe7 {[%emt 0:11:36]} 16. O-O {[%emt 0:15:17]} axb3 {[%emt 0:00:41]} 17. Rfe1 {[%emt 0:02:14]} Bxc4 {[%emt 0:04:51]} 18. Qg4 {[%emt 0:02:56]} O-O {[%emt 0:01:45]} 19. Qh5 {[%emt 0:16:39]} Be6 {[%emt 0:13:13]} 20. Bg5 {[%emt 0:02:08]} Qc5 {[%emt 0:10:26]} 21. Be3 {[%emt 0:18:14]} Qc2 {[%emt 0:01:56]} 22. Bg2 {[%emt 0:02:45]} Qf5 {[%emt 0:06:04]} 23. Bg5 {[%emt 0:00:53]} Qg4 {[%emt 0:01:25]} 24. Qxg4 {[%emt 0:00:53]} Bxg4 {[%emt 0:00:06]} 25. Rab1 {[%emt 0:00:24]} Be6 {[%emt 0:00:25]} 26. h5 {[%emt 0:00:41]} h6 {[%emt 0:01:05]} 27. Be7 {[%emt 0:00:37]} Rfb8 {[%emt 0:00:32]} 28. f4 {[%emt 0:00:24]} Nc4 {[%emt 0:01:24]} 0-1

[Event "GER-chT Youth Countries 2020"]
[Site "Berlin"]
[Date "2020.10.02"]
[Round "5"]
[White "Muedder, Melanie"]
[Black "Fock, Amina"]
[Result "1/2-1/2"]
[ECO "B90"]
[WhiteElo "2039"]
[BlackElo "1840"]
[Annotator "ChessBase"]
[PlyCount "146"]
[EventDate "2020.09.30"]
[EventType "team-tourn"]
[EventRounds "7"]
[EventCountry "GER"]
[SourceTitle "playchess.com"]
[Source "ChessBase"]
[SourceQuality "1"]
[TimeControl "30/5400+30:0"]

1. e4 {[%emt 0:00:00]} c5 {[%emt 0:00:00]} 2. Nf3 {[%emt 0:00:00]} d6 {[%emt 0:00:00]} 3. d4 {[%emt 0:00:00]} cxd4 {[%emt 0:00:00]} 4. Nxd4 {[%emt 0:00:00]} Nf6 {[%emt 0:00:00]} 5. Nc3 {[%emt 0:00:07]} a6 {[%emt 0:00:00]} 6. h3 {[%emt 0:00:16]} e5 {[%emt 0:00:36]} 7. Nb3 {[%emt 0:00:07]} h5 {[%emt 0:00:08]} 8. Bg5 {[%emt 0:00:11]} Be6 {[%emt 0:00:38]} 9. f4 {[%emt 0:00:19]} exf4 {[%emt 0:00:16]} 10. Qd2 {[%emt 0:00:19]} Be7 {[%emt 0:04:21]} 11. Bxf4 {[%emt 0:02:29]} Nc6 {[%emt 0:02:34]} 12. O-O-O {[%emt 0:00:47]} Ne5 {[%emt 0:00:40]} 13. Nd4 {[%emt 0:04:52]} Qc7 {[%emt 0:04:50]} 14. Nxe6 {[%emt 0:05:17]} fxe6 {[%emt 0:00:08]} 15. Be2 {[%emt 0:04:58]} h4 {[%emt 0:16:36]} 16. g3 {[%emt 0:12:11]} hxg3 {[%emt 0:05:35]} 17. Bxg3 {[%emt 0:01:26]} b5 {[%emt 0:12:34]} 18. a3 {[%emt 0:05:02]} Rb8 {[%emt 0:04:30]} 19. Qd4 {[%emt 0:20:05]} Nc6 {[%emt 0:13:01]} 20. Bxd6 {[%emt 0:10:30]} Nxd4 {[%emt 0:00:15]} 21. Bxc7 {[%emt 0:00:12]} Nxe2+ {[%emt 0:00:09]} 22. Nxe2 {[%emt 0:00:39]} Rc8 {[%emt 0:00:23]} 23. Be5 {[%emt 0:05:02]} Nxe4 {[%emt 0:02:49]} 24. Bxg7 {[%emt 0:04:01]} Rg8 {[%emt 0:03:10]} 25. Bd4 {[%emt 0:01:51]} Rg2 {[%emt 0:02:34]} 26. Nc3 {[%emt 0:03:59]} Nxc3 {[%emt 0:09:12]} 27. Bxc3 {[%emt 0:00:46]} Bxa3 {[%emt 0:00:21]} 28. Kb1 {[%emt 0:03:00]} Bc5 {[%emt 0:05:48]} 29. Rhe1 {[%emt 0:02:20]} Ke7 {[%emt 0:03:19]} 30. Rf1 {[%emt 0:02:55]} b4 {[%emt 0:04:15]} 31. Bf6+ {[%emt 1:32:28]} Ke8 {[%emt 1:30:05]} 32. c3 {[%emt 0:03:09]} bxc3 {[%emt 0:02:08]} 33. Bxc3 {[%emt 0:00:24]} Rb8 {[%emt 0:01:13]} 34. Rf6 {[%emt 0:03:14]} Rb6 {[%emt 0:02:34]} 35. Rh6 {[%emt 0:01:35]} Ba3 {[%emt 0:01:51]} 36. Rh8+ {[%emt 0:00:44]} Ke7 {[%emt 0:00:16]} 37. Rh7+ {[%emt 0:00:17]} Ke8 {[%emt 0:00:27]} 38. Bf6 {[%emt 0:02:13]} Bd6 {[%emt 0:00:55]} 39. Bc3 {[%emt 0:00:48]} Ba3 {[%emt 0:00:33]} 40. Bf6 {[%emt 0:00:29]} Bd6 {[%emt 0:00:07]} 41. Rc1 {[%emt 0:00:00]} Rb8 {[%emt 0:00:00]} 42. Rc6 {[%emt 0:00:00]} e5 {[%emt 0:00:00]} 43. Rh8+ {[%emt 0:00:00]} Kf7 {[%emt 0:00:00]} 44. Rxb8 {[%emt 0:00:00]} Bxb8 {[%emt 0:00:00]} 45. Rxa6 {[%emt 0:00:00]} Rg6 {[%emt 0:00:00]} 46. Rb6 {[%emt 0:00:00]} Rxf6 {[%emt 0:00:00]} 47. Rxb8 {[%emt 0:00:00]} Rf3 {[%emt 0:00:00]} 48. h4 {[%emt 0:00:00]} Rf4 {[%emt 0:00:00]} 49. h5 {[%emt 0:00:00]} Rh4 {[%emt 0:00:00]} 50. Rb7+ {[%emt 0:00:00]} Kf6 {[%emt 0:00:00]} 51. h6 {[%emt 0:00:00]} Kf5 {[%emt 0:01:35]} 52. h7 {[%emt 0:00:00]} e4 {[%emt 0:00:28]} 53. Kc2 {[%emt 0:00:00]} Rh2+ {[%emt 0:00:34]} 54. Kc3 {[%emt 0:00:00]} Kf4 {[%emt 0:01:18]} 55. Rf7+ {[%emt 0:00:37]} Ke5 {[%emt 0:02:21]} 56. b4 {[%emt 0:01:34]} Ke6 {[%emt 0:00:58]} 57. Rg7 {[%emt 0:01:02]} Kd5 {[%emt 0:00:25]} 58. b5 {[%emt 0:01:10]} Kc5 {[%emt 0:01:15]} 59. Rb7 {[%emt 0:02:06]} Rh3+ {[%emt 0:00:00]} 60. Kd2 {[%emt 0:00:30]} Kd4 {[%emt 0:00:16]} 61. Rc7 {[%emt 1:31:53]} Rh2+ {[%emt 1:30:39]} 62. Kc1 {[%emt 0:00:48]} e3 {[%emt 0:00:46]} 63. b6 {[%emt 0:01:13]} Rh1+ {[%emt 0:00:59]} 64. Kc2 {[%emt 0:00:19]} Rh2+ {[%emt 0:00:12]} 65. Kd1 {[%emt 0:00:54]} Rh1+ {[%emt 0:00:18]} 66. Ke2 {[%emt 0:00:30]} Rh2+ {[%emt 0:00:05]} 67. Kf1 {[%emt 0:01:07]} Rh1+ {[%emt 0:00:13]} 68. Kg2 {[%emt 0:00:26]} e2 {[%emt 0:00:09]} 69. Re7 {[%emt 0:00:33]} e1=Q {[%emt 0:00:10]} 70. Rxe1 {[%emt 0:00:22]} Rxh7 {[%emt 0:00:05]} 71. Rb1 {[%emt 0:00:16]} Rb7 {[%emt 0:00:04]} 72. Kf3 {[%emt 0:00:10]} Kc5 {[%emt 0:00:04]} 73. Ke4 {[%emt 0:00:09]} Rxb6 {[%emt 0:00:12]} 1/2-1/2

[Event "GER-chT Youth Countries 2020"]
[Site "Berlin"]
[Date "2020.10.02"]
[Round "5"]
[White "Nguyen, Ha Thanh"]
[Black "Junker, Magnus"]
[Result "0-1"]
[ECO "B98"]
[WhiteElo "2019"]
[BlackElo "2093"]
[Annotator "ChessBase"]
[PlyCount "76"]
[EventDate "2020.09.30"]
[EventType "team-tourn"]
[EventRounds "7"]
[EventCountry "GER"]
[SourceTitle "playchess.com"]
[Source "ChessBase"]
[SourceQuality "1"]
[TimeControl "30/5400+30:0"]

1. e4 {[%emt 0:00:00]} c5 {[%emt 0:00:00]} 2. Nf3 {[%emt 0:00:00]} d6 {[%emt 0:00:00]} 3. d4 {[%emt 0:00:00]} cxd4 {[%emt 0:00:00]} 4. Nxd4 {[%emt 0:00:00]} Nf6 {[%emt 0:00:00]} 5. Nc3 {[%emt 0:00:02]} a6 {[%emt 0:00:00]} 6. Bg5 {[%emt 0:00:23]} e6 {[%emt 0:00:00]} 7. f4 {[%emt 0:00:20]} Be7 {[%emt 0:00:06]} 8. Qe2 {[%emt 0:00:53]} Nbd7 {[%emt 0:00:53]} 9. O-O-O {[%emt 0:00:30]} h6 {[%emt 0:02:06]} 10. Bh4 {[%emt 0:01:54]} O-O {[%emt 0:01:05]} 11. Bf2 {[%emt 0:00:56]} Qc7 {[%emt 0:01:02]} 12. g4 {[%emt 0:00:40]} d5 {[%emt 0:01:16]} 13. e5 {[%emt 0:03:48]} Ne8 {[%emt 0:01:00]} 14. Bg3 {[%emt 0:02:15]} b5 {[%emt 0:01:26]} 15. h4 {[%emt 0:13:04]} Nc5 {[%emt 0:01:15]} 16. a3 {[%emt 0:04:08]} Rb8 {[%emt 0:02:30]} 17. f5 {[%emt 0:05:48]} b4 {[%emt 0:00:41]} 18. axb4 {[%emt 0:00:24]} Rxb4 {[%emt 0:00:05]} 19. Qe3 {[%emt 0:13:01]} Qb6 {[%emt 0:02:55]} 20. f6 {[%emt 0:06:44]} gxf6 {[%emt 0:00:06]} 21. Qxh6 {[%emt 0:02:41]} Rxb2 {[%emt 0:00:36]} 22. Bb5 {[%emt 0:02:34]} Rxb5 {[%emt 0:03:53]} 23. Ncxb5 {[%emt 0:00:45]} axb5 {[%emt 0:00:41]} 24. g5 {[%emt 0:10:58]} Ne4 {[%emt 0:03:00]} 25. gxf6 {[%emt 0:01:46]} Qa5 {[%emt 0:00:11]} 26. Kb1 {[%emt 0:10:36]} Nc3+ {[%emt 0:00:09]} 27. Kc1 {[%emt 0:00:15]} Qa3+ {[%emt 0:00:04]} 28. Kd2 {[%emt 0:00:27]} Ne4+ {[%emt 0:00:06]} 29. Ke2 {[%emt 0:01:09]} Bxf6 {[%emt 0:07:08]} 30. exf6 {[%emt 0:01:38]} e5 {[%emt 0:00:05]} 31. Rhg1 {[%emt 1:35:19]} Bg4+ {[%emt 1:30:44]} 32. Kf1 {[%emt 0:00:21]} Nxg3+ {[%emt 0:02:45]} 33. Rxg3 {[%emt 0:00:13]} Qxg3 {[%emt 0:00:07]} 34. Rd3 {[%emt 0:07:49]} Bh3+ {[%emt 0:00:27]} 35. Ke2 {[%emt 0:00:27]} Qg2+ {[%emt 0:01:20]} 36. Ke1 {[%emt 0:01:08]} exd4 {[%emt 0:03:07]} 37. Qf4 {[%emt 0:03:30]} Bg4 {[%emt 0:00:49]} 38. Qe5 {[%emt 0:00:55]} Qe4+ {[%emt 0:01:07]} 0-1

[Event "GER-chT Youth Countries 2020"]
[Site "Berlin"]
[Date "2020.10.02"]
[Round "5"]
[White "Wu, Luka"]
[Black "Yi, Danny"]
[Result "1-0"]
[ECO "C95"]
[WhiteElo "2019"]
[BlackElo "2266"]
[Annotator "ChessBase"]
[PlyCount "115"]
[EventDate "2020.09.30"]
[EventType "team-tourn"]
[EventRounds "7"]
[EventCountry "GER"]
[SourceTitle "playchess.com"]
[Source "ChessBase"]
[SourceQuality "1"]
[TimeControl "30/5400+30:0"]

1. e4 {[%emt 0:00:00]} e5 {[%emt 0:00:00]} 2. Nf3 {[%emt 0:00:00]} Nc6 {[%emt 0:00:00]} 3. Bb5 {[%emt 0:00:00]} a6 {[%emt 0:00:00]} 4. Ba4 {[%emt 0:00:00]} Nf6 {[%emt 0:00:00]} 5. O-O {[%emt 0:00:00]} Be7 {[%emt 0:00:03]} 6. Re1 {[%emt 0:00:00]} b5 {[%emt 0:00:07]} 7. Bb3 {[%emt 0:00:03]} d6 {[%emt 0:00:04]} 8. c3 {[%emt 0:00:05]} O-O {[%emt 0:00:06]} 9. h3 {[%emt 0:00:04]} Nb8 {[%emt 0:00:15]} 10. d4 {[%emt 0:00:07]} Nbd7 {[%emt 0:00:05]} 11. Nbd2 {[%emt 0:00:12]} Bb7 {[%emt 0:00:20]} 12. Bc2 {[%emt 0:00:06]} Re8 {[%emt 0:00:52]} 13. Nf1 {[%emt 0:00:11]} Bf8 {[%emt 0:00:49]} 14. Ng3 {[%emt 0:00:14]} g6 {[%emt 0:00:31]} 15. a4 {[%emt 0:08:18]} c5 {[%emt 0:00:34]} 16. d5 {[%emt 0:00:27]} c4 {[%emt 0:01:55]} 17. Bg5 {[%emt 0:00:13]} h6 {[%emt 0:08:24]} 18. Be3 {[%emt 0:00:13]} Qc7 {[%emt 0:08:46]} 19. Qd2 {[%emt 0:00:16]} Kh7 {[%emt 0:01:15]} 20. Ra3 {[%emt 0:10:47]} Nc5 {[%emt 0:08:36]} 21. Rea1 {[%emt 0:01:58]} Nfd7 {[%emt 0:06:56]} 22. Nf1 {[%emt 0:11:14]} Reb8 {[%emt 0:07:11]} 23. Qe2 {[%emt 0:17:12]} Nb6 {[%emt 0:10:18]} 24. Bxc5 {[%emt 0:04:24]} Qxc5 {[%emt 0:04:40]} 25. Ne3 {[%emt 0:01:25]} Bc8 {[%emt 0:03:25]} 26. a5 {[%emt 0:09:23]} Nd7 {[%emt 0:01:14]} 27. b3 {[%emt 0:00:38]} cxb3 {[%emt 0:02:40]} 28. Rxb3 {[%emt 0:00:48]} Qc7 {[%emt 0:01:32]} 29. c4 {[%emt 0:03:59]} Nc5 {[%emt 0:01:15]} 30. Rb4 {[%emt 0:02:23]} Bd7 {[%emt 0:01:04]} 31. Nd2 {[%emt 1:42:13]} Be7 {[%emt 1:38:41]} 32. Nb3 {[%emt 0:04:03]} Bg5 {[%emt 0:04:31]} 33. Nxc5 {[%emt 0:01:25]} Qxc5 {[%emt 0:00:14]} 34. Rab1 {[%emt 0:02:57]} Bd8 {[%emt 0:03:46]} 35. cxb5 {[%emt 0:02:49]} axb5 {[%emt 0:01:49]} 36. Bd3 {[%emt 0:03:16]} Bxa5 {[%emt 0:03:11]} 37. R4b3 {[%emt 0:00:18]} b4 {[%emt 0:00:54]} 38. Nc4 {[%emt 0:00:40]} Ba4 {[%emt 0:01:57]} 39. Nxa5 {[%emt 0:00:19]} Rxa5 {[%emt 0:01:17]} 40. R3b2 {[%emt 0:00:04]} Bd7 {[%emt 0:07:43]} 41. Qd2 {[%emt 0:07:02]} Ra3 {[%emt 0:02:19]} 42. Bc2 {[%emt 0:00:00]} Rc3 {[%emt 0:00:00]} 43. Bd1 {[%emt 0:00:00]} f5 {[%emt 0:00:00]} 44. Ra1 {[%emt 0:00:00]} fxe4 {[%emt 0:00:00]} 45. Kh2 {[%emt 0:00:00]} Rd3 {[%emt 0:00:00]} 46. Qe2 {[%emt 0:00:00]} Qxd5 {[%emt 0:00:00]} 47. Bc2 {[%emt 0:00:00]} Rd4 {[%emt 0:00:00]} 48. Ra7 {[%emt 0:00:00]} Rb7 {[%emt 0:00:00]} 49. Qa6 {[%emt 0:00:00]} Bc8 {[%emt 0:01:54]} 50. Bb3 {[%emt 0:00:44]} Rxa7 {[%emt 0:00:07]} 51. Qxa7+ {[%emt 0:00:06]} Qb7 {[%emt 0:00:06]} 52. Qa5 {[%emt 0:00:10]} Rd3 {[%emt 0:03:05]} 53. Qd8 {[%emt 0:00:43]} Rxb3 {[%emt 0:01:06]} 54. Rxb3 {[%emt 0:00:09]} Be6 {[%emt 0:00:19]} 55. Rb1 {[%emt 0:00:32]} Bc4 {[%emt 0:00:56]} 56. Qxd6 {[%emt 0:00:19]} b3 {[%emt 0:00:17]} 57. Qxe5 {[%emt 0:00:38]} h5 {[%emt 0:00:43]} 58. Rc1 {[%emt 0:00:28]} 1-0

[Event "GER-chT Youth Countries 2020"]
[Site "Berlin"]
[Date "2020.10.02"]
[Round "5"]
[White "Farokhi, Keyvan"]
[Black "Simon, Tessa"]
[Result "1-0"]
[ECO "B33"]
[WhiteElo "2001"]
[BlackElo "1860"]
[Annotator "ChessBase"]
[PlyCount "79"]
[EventDate "2020.09.30"]
[EventType "team-tourn"]
[EventRounds "7"]
[EventCountry "GER"]
[SourceTitle "playchess.com"]
[Source "ChessBase"]
[SourceQuality "1"]
[TimeControl "30/5400+30:0"]

1. e4 {[%emt 0:00:00]} c5 {[%emt 0:00:00]} 2. Nf3 {[%emt 0:00:00]} Nc6 {[%emt 0:00:00]} 3. d4 {[%emt 0:00:00]} cxd4 {[%emt 0:00:00]} 4. Nxd4 {[%emt 0:00:00]} Nf6 {[%emt 0:00:04]} 5. Nc3 {[%emt 0:00:02]} e5 {[%emt 0:00:10]} 6. Ndb5 {[%emt 0:00:43]} d6 {[%emt 0:00:07]} 7. Bg5 {[%emt 0:00:11]} a6 {[%emt 0:00:13]} 8. Na3 {[%emt 0:00:02]} b5 {[%emt 0:00:06]} 9. Bxf6 {[%emt 0:00:08]} gxf6 {[%emt 0:00:06]} 10. Nd5 {[%emt 0:00:08]} Bg7 {[%emt 0:00:12]} 11. Bd3 {[%emt 0:00:12]} Ne7 {[%emt 0:00:24]} 12. Nxe7 {[%emt 0:00:18]} Qxe7 {[%emt 0:00:16]} 13. O-O {[%emt 0:00:15]} O-O {[%emt 0:00:56]} 14. c4 {[%emt 0:00:23]} f5 {[%emt 0:06:10]} 15. Qh5 {[%emt 0:00:11]} f4 {[%emt 0:08:31]} 16. cxb5 {[%emt 0:00:25]} axb5 {[%emt 0:10:39]} 17. Nxb5 {[%emt 0:00:40]} Be6 {[%emt 0:00:55]} 18. a4 {[%emt 0:02:44]} Bb3 {[%emt 0:05:25]} 19. Nc3 {[%emt 0:04:36]} Rfb8 {[%emt 0:02:56]} 20. a5 {[%emt 0:04:40]} Qc7 {[%emt 0:04:40]} 21. Nb5 {[%emt 0:17:58]} Qd7 {[%emt 0:03:48]} 22. Qe2 {[%emt 0:01:48]} d5 {[%emt 0:08:09]} 23. exd5 {[%emt 0:04:39]} Bxd5 {[%emt 0:00:30]} 24. Rfd1 {[%emt 0:03:53]} Qb7 {[%emt 0:03:17]} 25. a6 {[%emt 0:03:22]} f3 {[%emt 0:11:41]} 26. Bxh7+ {[%emt 0:11:38]} Kh8 {[%emt 0:01:44]} 27. axb7 {[%emt 0:00:14]} fxe2 {[%emt 0:00:28]} 28. bxa8=Q {[%emt 0:00:18]} exd1=Q+ {[%emt 0:00:57]} 29. Rxd1 {[%emt 0:00:09]} Bxa8 {[%emt 0:00:28]} 30. Bd3 {[%emt 0:00:16]} e4 {[%emt 0:04:49]} 31. Bc4 {[%emt 1:32:13]} Bc6 {[%emt 1:33:56]} 32. Nd6 {[%emt 0:00:33]} Bxb2 {[%emt 0:02:07]} 33. Nxf7+ {[%emt 0:00:48]} Kg7 {[%emt 0:00:22]} 34. Ng5 {[%emt 0:01:58]} Ba4 {[%emt 0:02:23]} 35. Rf1 {[%emt 0:07:21]} Bc2 {[%emt 0:03:59]} 36. h4 {[%emt 0:02:59]} Rb4 {[%emt 0:05:42]} 37. Bd5 {[%emt 0:08:03]} e3 {[%emt 0:06:19]} 38. fxe3 {[%emt 0:00:25]} Rxh4 {[%emt 0:00:17]} 39. Rf2 {[%emt 0:00:22]} Rh5 {[%emt 0:00:39]} 40. Ne6+ {[%emt 0:00:08]} 1-0